[Event "*** Titled Tuesday Blitz"]
[Site "Chess.com"]
[Date "2018.04.03"]
[Round "10"]
[White "petrpalachev"]
[Black "pedromartinez91"]
[Result "1-0"]
[WhiteElo "2605"]
[BlackElo "2375"]
[TimeControl "180+2"]
[EndTime "15:17:17 PDT"]
[Termination "petrpalachev won on time"]

1. d4 {[%clk 0:03:01.9]} 1... Nf6 {[%clk 0:02:53.7]} 2. Nf3 {[%clk 0:03:02.7]}
2... g6 {[%clk 0:02:54.3]} 3. Bg5 {[%clk 0:03:02.8]} 3... Ne4 {[%clk 0:02:54.1]}
4. h4 {[%clk 0:03:01.8]} 4... c5 {[%clk 0:02:48]} 5. Nbd2 {[%clk 0:02:58.9]}
5... Nxg5 {[%clk 0:02:44.4]} 6. hxg5 {[%clk 0:02:59]} 6... cxd4 {[%clk
0:02:45.3]} 7. Nxd4 {[%clk 0:02:59.9]} 7... Bg7 {[%clk 0:02:45.3]} 8. N2f3
{[%clk 0:02:52.3]} 8... Nc6 {[%clk 0:02:44.9]} 9. e3 {[%clk 0:02:50.8]} 9... Qb6
{[%clk 0:02:44.6]} 10. Rb1 {[%clk 0:02:51]} 10... Nxd4 {[%clk 0:02:29.9]} 11.
Nxd4 {[%clk 0:02:45.9]} 11... Qa5+ {[%clk 0:02:28.5]} 12. c3 {[%clk 0:02:46]}
12... Qxg5 {[%clk 0:02:28.6]} 13. g3 {[%clk 0:02:36.1]} 13... O-O {[%clk
0:02:25.4]} 14. Bg2 {[%clk 0:02:37]} 14... d6 {[%clk 0:02:21.2]} 15. a4 {[%clk
0:02:33.5]} 15... Bg4 {[%clk 0:02:21]} 16. Qb3 {[%clk 0:02:30.4]} 16... Rab8
{[%clk 0:02:11.9]} 17. Qb5 {[%clk 0:02:26.8]} 17... Qf6 {[%clk 0:01:46]} 18. O-O
{[%clk 0:01:51.6]} 18... a6 {[%clk 0:01:41.6]} 19. Qd3 {[%clk 0:01:50.8]} 19...
Bd7 {[%clk 0:01:26.2]} 20. a5 {[%clk 0:01:50.9]} 20... Rfc8 {[%clk 0:01:22.9]}
21. Rbc1 {[%clk 0:01:49]} 21... Qg5 {[%clk 0:01:20.8]} 22. b4 {[%clk 0:01:48.8]}
22... d5 {[%clk 0:01:10.9]} 23. Rfd1 {[%clk 0:01:45.7]} 23... e6 {[%clk
0:01:08.8]} 24. Nf3 {[%clk 0:01:39.6]} 24... Qe7 {[%clk 0:01:02.9]} 25. Nd4
{[%clk 0:01:38.7]} 25... Rc7 {[%clk 0:00:58.3]} 26. e4 {[%clk 0:01:35]} 26...
Ba4 {[%clk 0:00:56.6]} 27. Re1 {[%clk 0:01:34.5]} 27... dxe4 {[%clk 0:00:53.8]}
28. Bxe4 {[%clk 0:01:34.5]} 28... Rbc8 {[%clk 0:00:53.7]} 29. Kg2 {[%clk
0:01:06]} 29... Qd8 {[%clk 0:00:49.5]} 30. Qe3 {[%clk 0:00:57.5]} 30... Bxd4
{[%clk 0:00:29.6]} 31. cxd4 {[%clk 0:00:59.4]} 31... Bc6 {[%clk 0:00:29.4]} 32.
Rc5 {[%clk 0:00:52.1]} 32... Qd6 {[%clk 0:00:23.3]} 33. Rec1 {[%clk 0:00:50]}
33... Bxe4+ {[%clk 0:00:23.4]} 34. Qxe4 {[%clk 0:00:51.9]} 34... Rxc5 {[%clk
0:00:22.7]} 35. bxc5 {[%clk 0:00:52.9]} 35... Qc6 {[%clk 0:00:14.5]} 36. Kf3
{[%clk 0:00:50.8]} 36... Kf8 {[%clk 0:00:14.6]} 37. Rb1 {[%clk 0:00:50.9]} 37...
Qxe4+ {[%clk 0:00:12.8]} 38. Kxe4 {[%clk 0:00:52.8]} 38... Rc7 {[%clk 0:00:14]}
39. g4 {[%clk 0:00:50.8]} 39... Ke7 {[%clk 0:00:10.9]} 40. g5 {[%clk 0:00:51.7]}
40... Kd7 {[%clk 0:00:07.7]} 41. Ke5 {[%clk 0:00:45.6]} 41... Ke7 {[%clk
0:00:08.1]} 42. f4 {[%clk 0:00:44.9]} 42... Rd7 {[%clk 0:00:08.9]} 43. Rb6
{[%clk 0:00:45]} 43... Rd5+ {[%clk 0:00:09.8]} 44. Ke4 {[%clk 0:00:46.4]} 44...
Rd7 {[%clk 0:00:11]} 45. Ke5 {[%clk 0:00:40.6]} 45... Rd5+ {[%clk 0:00:11.5]}
46. Ke4 {[%clk 0:00:41.2]} 46... Rd7 {[%clk 0:00:12.6]} 47. c6 {[%clk 0:00:39]}
47... bxc6 {[%clk 0:00:11.1]} 48. Rxc6 {[%clk 0:00:40.9]} 48... Ra7 {[%clk
0:00:11.1]} 49. Ke5 {[%clk 0:00:41.1]} 49... Ra8 {[%clk 0:00:06.4]} 50. Rc7+
{[%clk 0:00:41.6]} 50... Ke8 {[%clk 0:00:05]} 51. Kf6 {[%clk 0:00:39.9]} 51...
Rd8 {[%clk 0:00:06.6]} 52. Re7+ {[%clk 0:00:40.4]} 52... Kf8 {[%clk 0:00:08]}
53. Rxf7+ {[%clk 0:00:42.3]} 53... Kg8 {[%clk 0:00:09.3]} 54. Rg7+ {[%clk
0:00:43]} 54... Kh8 {[%clk 0:00:09.2]} 55. Re7 {[%clk 0:00:38]} 55... Rf8+
{[%clk 0:00:08.6]} 56. Rf7 {[%clk 0:00:25.8]} 56... Rd8 {[%clk 0:00:09.4]} 57.
Ra7 {[%clk 0:00:20]} 57... h5 {[%clk 0:00:06.2]} 58. gxh6 {[%clk 0:00:19.9]}
58... Rxd4 {[%clk 0:00:06.5]} 59. Kxg6 {[%clk 0:00:21]} 59... Rd8 {[%clk
0:00:06]} 60. Rxa6 {[%clk 0:00:21.2]} 60... Rf8 {[%clk 0:00:04.5]} 61. Rxe6
{[%clk 0:00:20.3]} 61... Rxf4 {[%clk 0:00:05.3]} 62. Re8+ {[%clk 0:00:21.1]} 1-0

[Event "*** Titled Tuesday Blitz"]
[Site "Chess.com"]
[Date "2018.04.03"]
[Round "10"]
[White "Bad4life"]
[Black "Alopekos"]
[Result "0-1"]
[WhiteElo "2370"]
[BlackElo "2340"]
[TimeControl "180+2"]
[EndTime "15:17:31 PDT"]
[Termination "Alopekos won by checkmate"]

1. e4 {[%clk 0:03:01.9]} 1... e5 {[%clk 0:02:59.1]} 2. Nf3 {[%clk 0:03:02.9]}
2... Nc6 {[%clk 0:02:59.9]} 3. Bc4 {[%clk 0:03:04]} 3... Nf6 {[%clk 0:03:00.6]}
4. d3 {[%clk 0:03:05.4]} 4... Be7 {[%clk 0:03:01.3]} 5. a4 {[%clk 0:03:06.1]}
5... O-O {[%clk 0:03:01.6]} 6. O-O {[%clk 0:03:07.5]} 6... d6 {[%clk 0:03:01.1]}
7. a5 {[%clk 0:03:08.4]} 7... a6 {[%clk 0:02:59.9]} 8. c3 {[%clk 0:03:08.5]}
8... Be6 {[%clk 0:02:57.9]} 9. Nbd2 {[%clk 0:03:07]} 9... Qd7 {[%clk 0:02:37.7]}
10. Re1 {[%clk 0:03:07.8]} 10... Rad8 {[%clk 0:02:37.2]} 11. Qb3 {[%clk
0:03:03.3]} 11... Qc8 {[%clk 0:02:19.3]} 12. Nf1 {[%clk 0:02:58.4]} 12... Bxc4
{[%clk 0:02:03.5]} 13. Qxc4 {[%clk 0:02:55.4]} 13... d5 {[%clk 0:02:04.8]} 14.
exd5 {[%clk 0:02:56]} 14... Rxd5 {[%clk 0:02:06.7]} 15. Ne3 {[%clk 0:02:53.8]}
15... Rxa5 {[%clk 0:01:52.9]} 16. Rxa5 {[%clk 0:02:42.9]} 16... Nxa5 {[%clk
0:01:54.8]} 17. Qh4 {[%clk 0:02:42.4]} 17... Nc6 {[%clk 0:01:52.9]} 18. h3
{[%clk 0:02:27.4]} 18... Rd8 {[%clk 0:01:25.2]} 19. Qc4 {[%clk 0:02:12.9]} 19...
Qd7 {[%clk 0:01:22.2]} 20. Ng5 {[%clk 0:02:12.7]} 20... Bf8 {[%clk 0:01:20.2]}
21. Nf5 {[%clk 0:01:47.1]} 21... h6 {[%clk 0:00:45.2]} 22. Nxh6+ {[%clk
0:01:21.9]} 22... gxh6 {[%clk 0:00:44.9]} 23. Nf3 {[%clk 0:01:22.1]} 23... Qxd3
{[%clk 0:00:31.4]} 24. Qh4 {[%clk 0:01:22.3]} 24... Qg6 {[%clk 0:00:32.2]} 25.
Be3 {[%clk 0:01:16.9]} 25... Nd5 {[%clk 0:00:22.7]} 26. Nxe5 {[%clk 0:00:44.3]}
26... Nxe5 {[%clk 0:00:19.5]} 27. Qxd8 {[%clk 0:00:45]} 27... Nf3+ {[%clk
0:00:19.8]} 28. Kf1 {[%clk 0:00:46.4]} 28... Nxe1 {[%clk 0:00:19.6]} 29. Bc5
{[%clk 0:00:44.7]} 29... Qxg2+ {[%clk 0:00:04.5]} 30. Kxe1 {[%clk 0:00:45.3]}
30... Qh1+ {[%clk 0:00:05]} 31. Kd2 {[%clk 0:00:44.3]} 31... Kh7 {[%clk
0:00:02.4]} 32. Qxf8 {[%clk 0:00:31.1]} 32... Qf3 {[%clk 0:00:03.8]} 33. Qc8
{[%clk 0:00:26.2]} 33... Qf4+ {[%clk 0:00:04.2]} 34. Kd1 {[%clk 0:00:23.4]}
34... Qf3+ {[%clk 0:00:04.1]} 35. Kc2 {[%clk 0:00:24.8]} 35... Qe2+ {[%clk
0:00:04.5]} 36. Kc1 {[%clk 0:00:21.8]} 36... Qe1+ {[%clk 0:00:04.6]} 37. Kc2
{[%clk 0:00:23.3]} 37... Qe2+ {[%clk 0:00:06.5]} 38. Kb3 {[%clk 0:00:24.4]}
38... Qb5+ {[%clk 0:00:07.2]} 39. Bb4 {[%clk 0:00:25]} 39... Nxb4 {[%clk
0:00:07]} 40. cxb4 {[%clk 0:00:25.6]} 40... a5 {[%clk 0:00:05.6]} 41. Qxc7
{[%clk 0:00:21.6]} 41... Qxb4+ {[%clk 0:00:06.9]} 42. Ka2 {[%clk 0:00:22.9]}
42... Qa4+ {[%clk 0:00:07.1]} 43. Kb1 {[%clk 0:00:24.2]} 43... Qd1+ {[%clk
0:00:09]} 44. Ka2 {[%clk 0:00:25.7]} 44... Qa4+ {[%clk 0:00:10.9]} 45. Kb1
{[%clk 0:00:27.1]} 45... Qe4+ {[%clk 0:00:11.4]} 46. Ka2 {[%clk 0:00:27.9]}
46... Qd5+ {[%clk 0:00:12.5]} 47. Ka1 {[%clk 0:00:28.2]} 47... Kg6 {[%clk
0:00:10.2]} 48. h4 {[%clk 0:00:28.2]} 48... Kh5 {[%clk 0:00:10.4]} 49. Qg3
{[%clk 0:00:25.6]} 49... Qd1+ {[%clk 0:00:10.1]} 50. Ka2 {[%clk 0:00:27]} 50...
Qa4+ {[%clk 0:00:12]} 51. Kb1 {[%clk 0:00:27.8]} 51... Qxh4 {[%clk 0:00:13.9]}
52. Qf3+ {[%clk 0:00:23.3]} 52... Kg6 {[%clk 0:00:12.9]} 53. Qxb7 {[%clk
0:00:21.5]} 53... Qxf2 {[%clk 0:00:09.4]} 54. Qa6+ {[%clk 0:00:21]} 54... Qf6
{[%clk 0:00:04.1]} 55. Qa7 {[%clk 0:00:21.8]} 55... Qf5+ {[%clk 0:00:04.4]} 56.
Ka1 {[%clk 0:00:23.3]} 56... h5 {[%clk 0:00:05.4]} 57. Qg1+ {[%clk 0:00:24]}
57... Qg5 {[%clk 0:00:05.5]} 58. Qb1+ {[%clk 0:00:25]} 58... Qf5 {[%clk
0:00:05.8]} 59. Qg1+ {[%clk 0:00:26.2]} 59... Qg4 {[%clk 0:00:07.1]} 60. Qb1+
{[%clk 0:00:26.7]} 60... f5 {[%clk 0:00:08]} 61. Qe1 {[%clk 0:00:26.8]} 61...
Qa4+ {[%clk 0:00:07.6]} 62. Kb1 {[%clk 0:00:28]} 62... Qe4+ {[%clk 0:00:09.5]}
63. Qxe4 {[%clk 0:00:29.4]} 63... fxe4 {[%clk 0:00:11.4]} 64. Kc2 {[%clk
0:00:30.8]} 64... h4 {[%clk 0:00:12.4]} 65. Kb3 {[%clk 0:00:29.3]} 65... h3
{[%clk 0:00:13.8]} 66. Ka4 {[%clk 0:00:31.2]} 66... h2 {[%clk 0:00:15.2]} 67.
Kxa5 {[%clk 0:00:33.1]} 67... h1=Q {[%clk 0:00:16.8]} 68. b4 {[%clk 0:00:35]}
68... e3 {[%clk 0:00:17.9]} 69. b5 {[%clk 0:00:36.9]} 69... e2 {[%clk
0:00:19.8]} 70. b6 {[%clk 0:00:38.8]} 70... e1=Q+ {[%clk 0:00:21.7]} 71. Ka6
{[%clk 0:00:39.8]} 71... Qa8+ {[%clk 0:00:22.5]} 72. Kb5 {[%clk 0:00:40.8]}
72... Qee8+ {[%clk 0:00:24]} 73. Kc5 {[%clk 0:00:41.9]} 73... Qec6+ {[%clk
0:00:25.9]} 74. Kd4 {[%clk 0:00:43]} 74... Qxb6+ {[%clk 0:00:26.7]} 75. Ke5
{[%clk 0:00:44.5]} 75... Qaa5+ {[%clk 0:00:28.6]} 76. Kf4 {[%clk 0:00:45.6]}
76... Qbb4+ {[%clk 0:00:30.5]} 77. Kg3 {[%clk 0:00:47.5]} 77... Qaa3+ {[%clk
0:00:32.2]} 78. Kf2 {[%clk 0:00:49.4]} 78... Qbb2+ {[%clk 0:00:33.8]} 79. Kg1
{[%clk 0:00:51.3]} 79... Qaa1# {[%clk 0:00:35.5]} 0-1

[Event "*** Titled Tuesday Blitz"]
[Site "Chess.com"]
[Date "2018.04.03"]
[Round "10"]
[White "Chesscoach_Golichenko"]
[Black "SmoothAsAHedgehog"]
[Result "1-0"]
[WhiteElo "2504"]
[BlackElo "2567"]
[TimeControl "180+2"]
[EndTime "15:17:55 PDT"]
[Termination "Chesscoach_Golichenko won by resignation"]

1. d4 {[%clk 0:03:01.9]} 1... Nf6 {[%clk 0:03:00.5]} 2. c4 {[%clk 0:03:02.8]}
2... e6 {[%clk 0:02:58.1]} 3. Nc3 {[%clk 0:03:03.8]} 3... Bb4 {[%clk 0:02:58.5]}
4. Qc2 {[%clk 0:03:05]} 4... b6 {[%clk 0:02:51.2]} 5. e4 {[%clk 0:03:02.7]} 5...
c5 {[%clk 0:02:43.3]} 6. d5 {[%clk 0:02:31]} 6... exd5 {[%clk 0:02:42.7]} 7.
exd5 {[%clk 0:02:29.7]} 7... Qe7+ {[%clk 0:02:43.3]} 8. Ne2 {[%clk 0:02:19.4]}
8... d6 {[%clk 0:02:40.9]} 9. Be3 {[%clk 0:02:06.3]} 9... O-O {[%clk 0:02:38.6]}
10. h3 {[%clk 0:02:02.7]} 10... b5 {[%clk 0:02:38.3]} 11. a3 {[%clk 0:02:02.5]}
11... Bxc3+ {[%clk 0:02:37.9]} 12. Nxc3 {[%clk 0:02:02.1]} 12... bxc4 {[%clk
0:02:39.4]} 13. Bxc4 {[%clk 0:02:00.7]} 13... Nbd7 {[%clk 0:02:40.8]} 14. O-O
{[%clk 0:02:01.1]} 14... Nb6 {[%clk 0:02:41.9]} 15. Ba2 {[%clk 0:01:54.4]} 15...
Bb7 {[%clk 0:02:35.9]} 16. Rad1 {[%clk 0:01:54.3]} 16... Rfe8 {[%clk 0:02:18]}
17. Rfe1 {[%clk 0:01:54]} 17... Qc7 {[%clk 0:02:15]} 18. Bg5 {[%clk 0:01:48.1]}
18... Rxe1+ {[%clk 0:02:09.6]} 19. Rxe1 {[%clk 0:01:50]} 19... Re8 {[%clk
0:02:11.1]} 20. Rd1 {[%clk 0:01:37.6]} 20... Nfd7 {[%clk 0:02:04.7]} 21. Bb1
{[%clk 0:01:14.2]} 21... Nf8 {[%clk 0:01:54]} 22. Bf4 {[%clk 0:01:02.7]} 22...
a6 {[%clk 0:01:49.8]} 23. Qb3 {[%clk 0:01:01.4]} 23... Nbd7 {[%clk 0:01:45.7]}
24. Ne4 {[%clk 0:00:55.2]} 24... Ne5 {[%clk 0:01:46]} 25. Qg3 {[%clk 0:00:46.7]}
25... Nfg6 {[%clk 0:01:46.1]} 26. h4 {[%clk 0:00:40.8]} 26... Nxf4 {[%clk
0:01:03.2]} 27. Nf6+ {[%clk 0:00:38.1]} 27... Kf8 {[%clk 0:01:03.1]} 28. Nxh7+
{[%clk 0:00:39]} 28... Kg8 {[%clk 0:00:59.1]} 29. Qxf4 {[%clk 0:00:40.1]} 29...
c4 {[%clk 0:00:54.4]} 30. Qg5 {[%clk 0:00:34.2]} 30... Qe7 {[%clk 0:00:55.3]}
31. Qg3 {[%clk 0:00:26.8]} 31... Nd3 {[%clk 0:00:47.7]} 32. Bxd3 {[%clk
0:00:23.4]} 32... cxd3 {[%clk 0:00:49.6]} 33. Ng5 {[%clk 0:00:25.2]} 33... Bxd5
{[%clk 0:00:50.2]} 34. Qxd3 {[%clk 0:00:26]} 34... Be4 {[%clk 0:00:51.5]} 35.
Nxe4 {[%clk 0:00:25.7]} 35... Qxe4 {[%clk 0:00:53.4]} 36. Qxe4 {[%clk
0:00:27.2]} 36... Rxe4 {[%clk 0:00:55.1]} 37. Rxd6 {[%clk 0:00:28.7]} 37... a5
{[%clk 0:00:54.4]} 38. g3 {[%clk 0:00:28.4]} 38... Re2 {[%clk 0:00:53]} 39. Rd5
{[%clk 0:00:28.8]} 39... Rxb2 {[%clk 0:00:52]} 40. Rxa5 {[%clk 0:00:29.4]} 40...
Ra2 {[%clk 0:00:52.1]} 41. h5 {[%clk 0:00:30.1]} 41... Kh7 {[%clk 0:00:52.5]}
42. Ra7 {[%clk 0:00:29.7]} 42... f6 {[%clk 0:00:52.5]} 43. g4 {[%clk 0:00:29.2]}
43... Kh6 {[%clk 0:00:53.5]} 44. Kg2 {[%clk 0:00:30.4]} 44... Rc2 {[%clk
0:00:45.4]} 45. Kg3 {[%clk 0:00:30]} 45... Rc1 {[%clk 0:00:44]} 46. f3 {[%clk
0:00:29.7]} 46... Rb1 {[%clk 0:00:44.3]} 47. Kf4 {[%clk 0:00:27.2]} 47... Re1
{[%clk 0:00:42.5]} 48. Ra8 {[%clk 0:00:28]} 48... Kh7 {[%clk 0:00:43.6]} 49. a4
{[%clk 0:00:28.9]} 49... Rc1 {[%clk 0:00:40.9]} 50. a5 {[%clk 0:00:29.9]} 50...
Ra1 {[%clk 0:00:41.5]} 51. a6 {[%clk 0:00:30.9]} 51... Ra4+ {[%clk 0:00:41.6]}
52. Kf5 {[%clk 0:00:24.9]} 52... Ra3 {[%clk 0:00:40.3]} 53. f4 {[%clk
0:00:24.2]} 53... Ra5+ {[%clk 0:00:40.6]} 54. Ke6 {[%clk 0:00:24.9]} 54... Ra4
{[%clk 0:00:41.8]} 55. a7 {[%clk 0:00:08.9]} 55... g6 {[%clk 0:00:18.4]} 56.
hxg6+ {[%clk 0:00:07.5]} 56... Kg7 {[%clk 0:00:19.4]} 57. f5 {[%clk 0:00:07.4]}
57... Ra5 {[%clk 0:00:19]} 58. Kd6 {[%clk 0:00:07.8]} 58... Ra6+ {[%clk
0:00:19.1]} 59. Kd5 {[%clk 0:00:08.3]} 59... Ra5+ {[%clk 0:00:20]} 60. Kc6
{[%clk 0:00:09.5]} 60... Ra1 {[%clk 0:00:20.6]} 61. Rb8 {[%clk 0:00:10.5]} 61...
Rxa7 {[%clk 0:00:16.9]} 62. Rb7+ {[%clk 0:00:11.1]} 62... Rxb7 {[%clk
0:00:18.4]} 63. Kxb7 {[%clk 0:00:13]} 63... Kh6 {[%clk 0:00:19.6]} 64. Kc7
{[%clk 0:00:14]} 64... Kg7 {[%clk 0:00:20.8]} 65. Kd7 {[%clk 0:00:15.2]} 65...
Kh6 {[%clk 0:00:22.7]} 66. Ke7 {[%clk 0:00:15.9]} 66... Kg5 {[%clk 0:00:24.6]}
67. g7 {[%clk 0:00:16.6]} 67... Kxg4 {[%clk 0:00:26.5]} 68. g8=Q+ {[%clk
0:00:17.9]} 68... Kxf5 {[%clk 0:00:27.8]} 69. Qg7 {[%clk 0:00:18.6]} 1-0

[Event "*** Titled Tuesday Blitz"]
[Site "Chess.com"]
[Date "2018.04.03"]
[Round "10"]
[White "nickmatta"]
[Black "codapbg94"]
[Result "1-0"]
[WhiteElo "2302"]
[BlackElo "2081"]
[TimeControl "180+2"]
[EndTime "15:17:59 PDT"]
[Termination "nickmatta won on time"]

1. d4 {[%clk 0:03:01.9]} 1... Nf6 {[%clk 0:03:00.2]} 2. c4 {[%clk 0:02:59.9]}
2... d6 {[%clk 0:03:00.7]} 3. Nf3 {[%clk 0:02:57.2]} 3... Nbd7 {[%clk
0:03:01.1]} 4. Nc3 {[%clk 0:02:56.4]} 4... c6 {[%clk 0:03:01.7]} 5. e4 {[%clk
0:02:57.3]} 5... e5 {[%clk 0:03:02.6]} 6. Be2 {[%clk 0:02:56.6]} 6... Be7 {[%clk
0:03:03.4]} 7. O-O {[%clk 0:02:54.8]} 7... O-O {[%clk 0:03:04.7]} 8. Re1 {[%clk
0:02:55.6]} 8... a6 {[%clk 0:03:05.6]} 9. Bf1 {[%clk 0:02:52.2]} 9... b5 {[%clk
0:03:05.9]} 10. d5 {[%clk 0:02:46.8]} 10... cxd5 {[%clk 0:02:51.1]} 11. cxd5
{[%clk 0:02:44.5]} 11... Ne8 {[%clk 0:02:35.1]} 12. Be3 {[%clk 0:02:34.5]} 12...
Nb6 {[%clk 0:02:33.1]} 13. a4 {[%clk 0:02:10.7]} 13... Nc4 {[%clk 0:02:28.1]}
14. Bc1 {[%clk 0:02:06.9]} 14... b4 {[%clk 0:02:03.1]} 15. Bxc4 {[%clk
0:01:59.6]} 15... bxc3 {[%clk 0:02:04]} 16. bxc3 {[%clk 0:02:01.5]} 16... Bg4
{[%clk 0:01:58.8]} 17. Be2 {[%clk 0:02:00.8]} 17... Bxf3 {[%clk 0:01:53.8]} 18.
Bxf3 {[%clk 0:02:01.6]} 18... Bg5 {[%clk 0:01:54.2]} 19. Ba3 {[%clk 0:01:58.1]}
19... f5 {[%clk 0:01:52.2]} 20. exf5 {[%clk 0:01:56.6]} 20... Rxf5 {[%clk
0:01:53]} 21. Bg4 {[%clk 0:01:54.9]} 21... Rf4 {[%clk 0:01:52.2]} 22. Be6+
{[%clk 0:01:36.9]} 22... Kh8 {[%clk 0:01:51.9]} 23. Qd3 {[%clk 0:01:20.3]} 23...
Qf6 {[%clk 0:01:46]} 24. Bc1 {[%clk 0:01:05.2]} 24... Rh4 {[%clk 0:01:04.8]} 25.
Bxg5 {[%clk 0:00:55.4]} 25... Qxg5 {[%clk 0:01:05.4]} 26. Re4 {[%clk 0:00:55.5]}
26... Rxe4 {[%clk 0:00:46.9]} 27. Qxe4 {[%clk 0:00:55.2]} 27... Nc7 {[%clk
0:00:46]} 28. Bh3 {[%clk 0:00:49.3]} 28... a5 {[%clk 0:00:38.3]} 29. g3 {[%clk
0:00:42]} 29... Na6 {[%clk 0:00:37.6]} 30. Rb1 {[%clk 0:00:35.3]} 30... Nc5
{[%clk 0:00:37.5]} 31. Qc4 {[%clk 0:00:33.2]} 31... g6 {[%clk 0:00:34.3]} 32.
Bg2 {[%clk 0:00:28.7]} 32... Qf5 {[%clk 0:00:32.8]} 33. Rb6 {[%clk 0:00:11.9]}
33... Rf8 {[%clk 0:00:33.1]} 34. Qe2 {[%clk 0:00:13.4]} 34... Qd7 {[%clk
0:00:21.4]} 35. Qb5 {[%clk 0:00:11.1]} 35... Qf7 {[%clk 0:00:20.2]} 36. Qe2
{[%clk 0:00:09.7]} 36... Nxa4 {[%clk 0:00:20.4]} 37. Rxd6 {[%clk 0:00:10.7]}
37... Nxc3 {[%clk 0:00:21.3]} 38. Qd2 {[%clk 0:00:08.9]} 38... Nb1 {[%clk
0:00:20.2]} 39. Qb2 {[%clk 0:00:07.3]} 39... Nc3 {[%clk 0:00:18]} 40. f4 {[%clk
0:00:04.4]} 40... Nd1 {[%clk 0:00:15.2]} 41. Qxe5+ {[%clk 0:00:05.1]} 41... Kg8
{[%clk 0:00:14.9]} 42. Bh3 {[%clk 0:00:04.7]} 42... Qa7+ {[%clk 0:00:15.3]} 43.
Kh1 {[%clk 0:00:04.8]} 43... Nf2+ {[%clk 0:00:14.4]} 44. Kg2 {[%clk 0:00:05.3]}
44... Nxh3 {[%clk 0:00:12.4]} 45. Kxh3 {[%clk 0:00:07.2]} 45... a4 {[%clk
0:00:13.4]} 46. Qe6+ {[%clk 0:00:06.8]} 46... Qf7 {[%clk 0:00:14.1]} 47. Qxf7+
{[%clk 0:00:07.1]} 47... Rxf7 {[%clk 0:00:15.2]} 48. Ra6 {[%clk 0:00:06.5]}
48... Rd7 {[%clk 0:00:15.8]} 49. d6 {[%clk 0:00:06.3]} 49... a3 {[%clk
0:00:16.2]} 50. Kg4 {[%clk 0:00:07.6]} 50... a2 {[%clk 0:00:17.4]} 51. Kg5
{[%clk 0:00:07.8]} 51... a1=Q {[%clk 0:00:17.7]} 52. Rxa1 {[%clk 0:00:09.7]}
52... Rxd6 {[%clk 0:00:18.8]} 53. Ra7 {[%clk 0:00:10.2]} 53... Rd5+ {[%clk
0:00:15.4]} 54. Kg4 {[%clk 0:00:09.9]} 54... Rf5 {[%clk 0:00:15.1]} 55. Kf3
{[%clk 0:00:09.1]} 55... Rf8 {[%clk 0:00:15.8]} 56. h3 {[%clk 0:00:09.2]} 56...
Rf6 {[%clk 0:00:16.4]} 57. g4 {[%clk 0:00:09.7]} 57... Rf8 {[%clk 0:00:17.3]}
58. Ke4 {[%clk 0:00:11.2]} 58... Re8+ {[%clk 0:00:17.6]} 59. Kd5 {[%clk
0:00:11.8]} 59... Rd8+ {[%clk 0:00:18.8]} 60. Ke5 {[%clk 0:00:13.2]} 60... Re8+
{[%clk 0:00:19.8]} 61. Kf6 {[%clk 0:00:14.8]} 61... Rf8+ {[%clk 0:00:20.7]} 62.
Kg5 {[%clk 0:00:16.3]} 62... Kh8 {[%clk 0:00:12.6]} 63. h4 {[%clk 0:00:14.7]}
63... Kg8 {[%clk 0:00:13.1]} 64. Rc7 {[%clk 0:00:09.5]} 64... Kh8 {[%clk
0:00:12.1]} 65. Re7 {[%clk 0:00:10.5]} 65... Kg8 {[%clk 0:00:12.9]} 66. f5
{[%clk 0:00:09.3]} 66... gxf5 {[%clk 0:00:13.1]} 67. gxf5 {[%clk 0:00:11.2]}
67... Kh8 {[%clk 0:00:13.1]} 68. f6 {[%clk 0:00:09.3]} 68... Kg8 {[%clk
0:00:13.6]} 69. h5 {[%clk 0:00:06]} 69... Kh8 {[%clk 0:00:08.6]} 70. h6 {[%clk
0:00:06.9]} 70... Kg8 {[%clk 0:00:04.3]} 71. Kf5 {[%clk 0:00:07]} 1-0